fUSD/lending_fUSD_20260529
["ID","MTS","AMOUNT","RATE_DAILY","PERIOD"]
[423251811,1779997249000,-1046.0,0.00032795,30]
[423251807,1779997249000,-181.0,0.00032795,30]
[423251810,1779997249000,-289.0,0.00032795,30]
[423251809,1779997249000,-151.0,0.00032795,30]
[423251817,1779997249000,-415.69,0.00032877,30]
[423251806,1779997249000,-351.0,0.00032785,30]
[423251808,1779997249000,-865.0,0.00032795,30]
[423251800,1779997249000,-3746.64839606,0.00032,120]
[423251799,1779997249000,-178.27248323,0.00032,120]
[423251802,1779997249000,-233.05830149,0.00032378,60]
[423251798,1779997249000,-171.58153361,0.00032,120]
[423251804,1779997249000,-170.0,0.00032785,30]
[423251803,1779997249000,-167.89454849,0.00032477,30]
[423251805,1779997249000,-1695.0,0.00032785,30]
[423251801,1779997249000,-202.82097945,0.00032,120]
[423251828,1779997250000,-1083.96292297,0.00033,30]
[423251834,1779997250000,-170.0,0.00033785,30]
[423251833,1779997250000,-1650.62,0.000333,30]
[423251831,1779997250000,-899.23,0.000332,30]
[423251832,1779997250000,-500.0,0.000332,60]
[423251829,1779997250000,-601.39671198,0.00033,30]
[423251830,1779997250000,-500.0,0.00033144,120]
[423251827,1779997250000,-168.03431567,0.00033,120]
[423251822,1779997250000,-167.57546934,0.00033,120]
[423251826,1779997250000,-164.14305202,0.00033,120]
[423251824,1779997250000,-170.59116884,0.00033,120]
[423251823,1779997250000,-342.57568305,0.00033,120]
[423251820,1779997250000,-348.98517537,0.00032999,120]
[423251821,1779997250000,-500.0,0.00032999,30]
[423251819,1779997250000,-1043.66,0.00032964,30]
[423251818,1779997250000,-2958.07999999,0.00032877,30]
[423251825,1779997250000,-165.54796298,0.00033,120]
[423251836,1779997250000,-351.0,0.00033785,30]
[423251837,1779997250000,-181.0,0.00033795,30]
[423251838,1779997250000,-865.0,0.00033795,30]
[423251835,1779997250000,-1695.0,0.00033785,30]
[423251852,1779997250000,-899.23,0.000342,30]
[423251853,1779997250000,-1806.68,0.00034247,30]
[423251854,1779997250000,-3336.94,0.00034247,30]
[423251855,1779997250000,-330.0,0.00034483,36]
[423251849,1779997250000,-164.14305202,0.000339,120]
[423251847,1779997250000,-170.59116884,0.000339,120]
[423251850,1779997250000,-168.03431567,0.000339,120]
[423251851,1779997250000,-212.07,0.00034002,120]
[423251845,1779997250000,-167.57546934,0.000339,120]
[423251848,1779997250000,-165.54796298,0.000339,120]
[423251840,1779997250000,-289.0,0.00033795,30]
[423251842,1779997250000,-151.0,0.00033795,30]
[423251841,1779997250000,-1046.0,0.00033795,30]
[423251839,1779997250000,-151.0,0.00033795,30]
[423251844,1779997250000,-769.0,0.00033795,30]
[423251846,1779997250000,-342.57568305,0.000339,120]
[423251843,1779997250000,-195.0,0.00033795,30]
[423251866,1779997251000,-1046.0,0.00034795,30]
[423251871,1779997251000,-183.1,0.000349,120]
[423251872,1779997251000,-500.0,0.00034999,30]
[423251870,1779997251000,-500.0,0.00034844,60]
[423251869,1779997251000,-769.0,0.00034795,30]
[423251867,1779997251000,-151.0,0.00034795,30]
[423251868,1779997251000,-195.0,0.00034795,30]
[423251864,1779997251000,-151.0,0.00034795,30]
[423251857,1779997251000,-864.25,0.00034544,60]
[423251863,1779997251000,-865.0,0.00034795,30]
[423251862,1779997251000,-181.0,0.00034795,30]
[423251861,1779997251000,-351.0,0.00034785,30]
[423251859,1779997251000,-170.0,0.00034785,30]
[423251860,1779997251000,-1695.0,0.00034785,30]
[423251856,1779997251000,-857.61,0.00034544,60]
[423251873,1779997251000,-500.0,0.00034999,30]
[423251865,1779997251000,-289.0,0.00034795,30]
[423251874,1779997251000,-500.0,0.00034999,30]
[423251858,1779997251000,-7122.7,0.00034544,60]
[423251878,1779997251000,-342.57568305,0.00035,120]
[423251875,1779997251000,-500.0,0.00034999,30]
[423251894,1779997251000,-777.7430355,0.00035637,120]
[423251891,1779997251000,-500.0,0.00035637,120]
[423251893,1779997251000,-500.0,0.00035637,120]
[423251890,1779997251000,-3715.77194398,0.00035616,30]
[423251889,1779997251000,-709.21999999,0.00035616,60]
[423251888,1779997251000,-1006.82,0.00035125,30]
[423251886,1779997251000,-290.83666419,0.00035,120]
[423251884,1779997251000,-10217.19031703,0.00035,120]
[423251892,1779997251000,-804.700104,0.00035637,120]
[423251885,1779997251000,-4744.68001902,0.00035,30]
[423251883,1779997251000,-100000.0,0.00035,30]
[423251882,1779997251000,-168.03431567,0.00035,120]
[423251881,1779997251000,-164.14305202,0.00035,120]
[423251879,1779997251000,-2761488.0,0.00035,30]
[423251880,1779997251000,-315.528,0.00035,120]
[423251876,1779997251000,-500.0,0.00034999,30]
[423251877,1779997251000,-167.57546934,0.00035,120]
[423251887,1779997251000,-181.08091962,0.00035,30]
[423251908,1779997252000,-342.57568305,0.00036,120]
[423251903,1779997252000,-151.0,0.00035795,30]
[423251905,1779997252000,-769.0,0.00035795,30]
[423251906,1779997252000,-183.1,0.000359,120]
[423251904,1779997252000,-195.0,0.00035795,30]
[423251901,1779997252000,-289.0,0.00035795,30]
[423251899,1779997252000,-865.0,0.00035795,30]
[423251902,1779997252000,-1046.0,0.00035795,30]
[423251898,1779997252000,-181.0,0.00035795,30]
[423251895,1779997252000,-170.0,0.00035785,30]
[423251897,1779997252000,-351.0,0.00035785,30]
[423251907,1779997252000,-167.57546934,0.00036,120]
[423251900,1779997252000,-151.0,0.00035795,30]
[423251910,1779997252000,-166.0,0.00036,30]
[423251896,1779997252000,-1695.0,0.00035785,30]
[423251909,1779997252000,-166.0,0.00036,30]
[423251911,1779997252000,-2089.7,0.00036153,30]
[423251925,1779997252000,-4894479.6130597,0.000375,120]
[423251923,1779997252000,-330.0,0.00037347,44]
[423251922,1779997252000,-185.0,0.0003726,120]
[423251920,1779997252000,-201.560005,0.000372,36]
[423251921,1779997252000,-194.71055026,0.000372,120]
[423251916,1779997252000,-155852.69,0.00036737,30]
[423251924,1779997252000,-792136.10785028,0.000375,120]
[423251919,1779997252000,-1650.62,0.00037,30]
[423251917,1779997252000,-183.1,0.000369,120]
[423251914,1779997252000,-35235.0,0.000364,30]
[423251915,1779997252000,-500.0,0.00036488,60]
[423251912,1779997252000,-500.0,0.00036153,120]
[423251913,1779997252000,-250.599999,0.000362,31]
[423251918,1779997252000,-400.0,0.00037,120]
[423251939,1779997282000,-152.75,0.00014014,2]
[423251937,1779997282000,-250.0,0.00013934,2]
[423251936,1779997282000,-150.0,0.00013929,2]
[423251934,1779997282000,-1471.24,0.00013635,2]
[423251935,1779997282000,-200.0,0.00013791,2]
[423251933,1779997282000,-152.0,0.00013159,2]
[423251930,1779997282000,-236.86073423,0.00012928,2]
[423251931,1779997282000,-150.0,0.00012953,2]
[423251929,1779997282000,-194.49708147,0.00012863,2]
[423251926,1779997282000,-237.91090619,0.00012663,2]
[423251928,1779997282000,-150.0,0.00012826,2]
[423251927,1779997282000,-150.0,0.00012667,2]
[423251932,1779997282000,-152.0,0.00013159,2]
[423251938,1779997282000,-459.8,0.00014008,2]
[423251940,1779997282000,-150.0,0.00014246,2]
[423251943,1779997282000,-500.0,0.00014246,2]
[423251942,1779997282000,-500.0,0.00014246,2]
[423251956,1779997282000,-500.0,0.00014246,2]
[423251955,1779997282000,-500.0,0.00014246,2]
[423251954,1779997282000,-500.0,0.00014246,2]
[423251951,1779997282000,-500.0,0.00014246,2]
[423251952,1779997282000,-500.0,0.00014246,2]
[423251950,1779997282000,-500.0,0.00014246,2]
[423251953,1779997282000,-500.0,0.00014246,2]
[423251949,1779997282000,-500.0,0.00014246,2]
[423251947,1779997282000,-500.0,0.00014246,2]
[423251945,1779997282000,-500.0,0.00014246,2]
[423251946,1779997282000,-500.0,0.00014246,2]
[423251944,1779997282000,-500.0,0.00014246,2]
[423251941,1779997282000,-500.0,0.00014246,2]
[423251948,1779997282000,-177.67062176,0.00014246,2]
[423251968,1779997283000,-2918.477,0.000147,2]
[423251974,1779997283000,-4811.34913985,0.00014767,2]
[423251972,1779997283000,-4811.34913985,0.00014722,2]
[423251971,1779997283000,-7220.0784,0.000147,2]
[423251970,1779997283000,-4811.34913992,0.000147,2]
[423251969,1779997283000,-15984.5574,0.000147,2]
[423251967,1779997283000,-1046.2424,0.000147,2]
[423251966,1779997283000,-500.0,0.00014699,2]
[423251957,1779997283000,-500.0,0.00014246,2]
[423251963,1779997283000,-248.72472761,0.00014699,2]
[423251964,1779997283000,-208.32620052,0.00014699,2]
[423251962,1779997283000,-500.0,0.00014699,2]
[423251961,1779997283000,-500.0,0.00014699,2]
[423251958,1779997283000,-500.0,0.00014246,2]
[423251960,1779997283000,-249.72427964,0.00014699,2]
[423251973,1779997283000,-4811.34913985,0.00014744,2]
[423251965,1779997283000,-552.98184422,0.00014699,2]
[423251975,1779997283000,-4811.34913985,0.00014789,2]
[423251959,1779997283000,-1108.62641723,0.00014248,2]
[423251979,1779997283000,-4811.34913985,0.00014811,2]
[423251976,1779997283000,-390499.7344,0.000148,2]
[423251994,1779997283000,-5000.0,0.000149,2]
[423251995,1779997283000,-662.14936075,0.000149,2]
[423251992,1779997283000,-25000.0,0.00014882,3]
[423251991,1779997283000,-4811.34913985,0.00014878,2]
[423251990,1779997283000,-25000.0,0.00014874,3]
[423251989,1779997283000,-25000.0,0.00014865,3]
[423251988,1779997283000,-1000.0,0.00014864,2]
[423251986,1779997283000,-4811.34913985,0.00014856,2]
[423251993,1779997283000,-10000.0,0.000149,2]
[423251987,1779997283000,-25000.0,0.00014856,3]
[423251984,1779997283000,-25000.0,0.00014838,3]
[423251983,1779997283000,-4811.34913985,0.00014833,2]
[423251981,1779997283000,-25000.0,0.00014821,3]
[423251982,1779997283000,-25000.0,0.0001483,3]
[423251980,1779997283000,-25000.0,0.00014812,3]
[423251978,1779997283000,-25000.0,0.00014803,3]
[423251977,1779997283000,-23936.4789,0.000148,2]
[423251985,1779997283000,-25000.0,0.00014847,3]
[423252008,1779997284000,-500.0,0.00014999,2]
[423252010,1779997284000,-500.0,0.00014999,2]
[423252009,1779997284000,-500.0,0.00014999,2]
[423252007,1779997284000,-500.0,0.00014999,2]
[423252006,1779997284000,-500.0,0.00014999,2]
[423252005,1779997284000,-503.0,0.00014999,2]
[423252004,1779997284000,-151.0,0.00014997,2]
[423252001,1779997284000,-35019.1840596,0.00014995,2]
[423252002,1779997284000,-635.314753,0.00014995,2]
[423252000,1779997284000,-55769.8708237,0.00014995,2]
[423251999,1779997284000,-389.2990523,0.00014995,2]
[423251998,1779997284000,-25000.0,0.000149,3]
[423251997,1779997284000,-4811.34913985,0.000149,2]
[423251996,1779997284000,-154.2694801,0.000149,2]
[423252011,1779997284000,-500.0,0.00014999,2]
[423252003,1779997284000,-461.4231289,0.00014995,2]
[423252013,1779997284000,-500.0,0.00014999,2]
[423252015,1779997284000,-500.0,0.00014999,2]
[423252014,1779997284000,-500.0,0.00014999,2]
[423252030,1779997284000,-500.0,0.00014999,2]
[423252012,1779997284000,-448.69494411,0.00014999,2]
[423252029,1779997284000,-500.0,0.00014999,2]
[423252028,1779997284000,-500.0,0.00014999,2]
[423252027,1779997284000,-500.0,0.00014999,2]
[423252026,1779997284000,-500.0,0.00014999,2]
[423252025,1779997284000,-510.46289227,0.00014999,2]
[423252022,1779997284000,-513.97918433,0.00014999,2]
[423252031,1779997284000,-500.0,0.00014999,2]
[423252023,1779997284000,-500.0,0.00014999,2]
[423252021,1779997284000,-500.0,0.00014999,2]
[423252019,1779997284000,-500.0,0.00014999,2]
[423252020,1779997284000,-500.0,0.00014999,2]
[423252018,1779997284000,-500.0,0.00014999,2]
[423252017,1779997284000,-500.0,0.00014999,2]
[423252016,1779997284000,-500.0,0.00014999,2]
[423252024,1779997284000,-500.0,0.00014999,2]
[423252032,1779997285000,-500.0,0.00014999,2]
[423252033,1779997285000,-500.0,0.00014999,2]
[423252035,1779997285000,-336.21063525,0.00014999,2]
[423252036,1779997285000,-500.0,0.00014999,2]
[423252037,1779997285000,-500.0,0.00014999,2]
[423252038,1779997285000,-500.0,0.00014999,2]
[423252039,1779997285000,-1092422.96897425,0.00015,2]
[423252034,1779997285000,-500.0,0.00014999,2]
[423252040,1779997334000,-163.1,0.00025898,30]
[423252042,1779997334000,-281.22,0.00027714,30]
[423252041,1779997334000,-912.1,0.00027714,30]
[423252043,1779997334000,-857.59,0.00027714,30]
[423252044,1779997334000,-153.21,0.00027854,30]
[423252045,1779997334000,-152.0,0.00027918,30]
[423252048,1779997334000,-912.1,0.00028142,30]
[423252047,1779997334000,-173.98,0.00027922,30]
[423252050,1779997334000,-857.59,0.00028142,30]
[423252049,1779997334000,-281.22,0.00028142,30]
[423252051,1779997334000,-158.0,0.00029788,30]
[423252052,1779997334000,-1102.0,0.00029788,30]
[423252053,1779997334000,-177.0,0.00029795,30]
[423252046,1779997334000,-152.0,0.00027918,30]
[423252070,1779997335000,-194.86042478,0.00033,120]
[423252069,1779997335000,-177.0,0.00032795,30]
[423252068,1779997335000,-1102.0,0.00032788,30]
[423252067,1779997335000,-158.0,0.00032788,30]
[423252065,1779997335000,-165.74138731,0.00032,120]
[423252064,1779997335000,-178.83772975,0.00032,120]
[423252063,1779997335000,-165.54796299,0.00032,120]
[423252060,1779997335000,-1102.0,0.00031788,30]
[423252061,1779997335000,-177.0,0.00031795,30]
[423252072,1779997335000,-165.74138731,0.00033,120]
[423252059,1779997335000,-158.0,0.00031788,30]
[423252057,1779997335000,-1102.0,0.00030788,30]
[423252058,1779997335000,-177.0,0.00030795,30]
[423252056,1779997335000,-158.0,0.00030788,30]
[423252055,1779997335000,-200.0,0.00030137,40]
[423252054,1779997335000,-152.0,0.00029796,120]
[423252062,1779997335000,-194.86042478,0.00032,120]
[423252071,1779997335000,-178.83772975,0.00033,120]
[423252066,1779997335000,-153.21,0.00032648,30]
[423252075,1779997335000,-1519.94,0.00033089,30]
[423252073,1779997335000,-468.47,0.00033089,30]
[423252092,1779997335000,-151.0,0.00035794,30]
[423252091,1779997335000,-151.0,0.00035794,30]
[423252090,1779997335000,-1000.0,0.00035794,30]
[423252089,1779997335000,-151.0,0.00035794,30]
[423252088,1779997335000,-300.0,0.00035794,30]
[423252084,1779997335000,-170.0,0.00035788,30]
[423252086,1779997335000,-1000.0,0.00035794,30]
[423252085,1779997335000,-1102.0,0.00035788,30]
[423252087,1779997335000,-151.0,0.00035794,30]
[423252081,1779997335000,-1102.0,0.00034788,30]
[423252083,1779997335000,-500.0,0.00035356,60]
[423252076,1779997335000,-158.0,0.00033788,30]
[423252078,1779997335000,-177.0,0.00033795,30]
[423252077,1779997335000,-1102.0,0.00033788,30]
[423252074,1779997335000,-1428.37,0.00033089,30]
[423252080,1779997335000,-158.0,0.00034788,30]
[423252082,1779997335000,-177.0,0.00034795,30]
[423252079,1779997335000,-165.74138731,0.000339,120]
[423252103,1779997336000,-450.8500647,0.00035794,30]
[423252112,1779997336000,-500.0,0.00035794,30]
[423252110,1779997336000,-162.380719,0.00035794,30]
[423252109,1779997336000,-156.587,0.00035794,30]
[423252108,1779997336000,-265.08541303,0.00035794,30]
[423252106,1779997336000,-620.0,0.00035794,30]
[423252107,1779997336000,-168.3888056,0.00035794,30]
[423252105,1779997336000,-151.0,0.00035794,30]
[423252104,1779997336000,-156.587,0.00035794,30]
[423252094,1779997336000,-237.10709003,0.00035794,30]
[423252111,1779997336000,-170.57514512,0.00035794,30]
[423252100,1779997336000,-151.0,0.00035794,30]
[423252098,1779997336000,-151.0,0.00035794,30]
[423252099,1779997336000,-322.6107,0.00035794,30]
[423252097,1779997336000,-151.0,0.00035794,30]
[423252096,1779997336000,-156.587,0.00035794,30]
[423252093,1779997336000,-311.1,0.00035794,30]
[423252095,1779997336000,-549.99214442,0.00035794,30]
[423252102,1779997336000,-151.0,0.00035794,30]
[423252113,1779997336000,-642.94,0.00035794,30]
[423252101,1779997336000,-162.380719,0.00035794,30]
[423252116,1779997336000,-200.0,0.00035794,30]
[423252114,1779997336000,-179.7695246,0.00035794,30]
[423252134,1779997336000,-181.08010149,0.00035794,30]
[423252133,1779997336000,-716.97946141,0.00035794,30]
[423252132,1779997336000,-168.3888056,0.00035794,30]
[423252131,1779997336000,-181.08010149,0.00035794,30]
[423252130,1779997336000,-518.5,0.00035794,30]
[423252129,1779997336000,-200.0,0.00035794,30]
[423252128,1779997336000,-200.0,0.00035794,30]
[423252127,1779997336000,-151.0,0.00035794,30]
[423252126,1779997336000,-691.39774486,0.00035794,30]
[423252135,1779997336000,-151.0,0.00035794,30]
[423252125,1779997336000,-174.61919141,0.00035794,30]
[423252123,1779997336000,-518.5,0.00035794,30]
[423252122,1779997336000,-200.0,0.00035794,30]
[423252121,1779997336000,-151.0,0.00035794,30]
[423252120,1779997336000,-162.380719,0.00035794,30]
[423252119,1779997336000,-666.72878,0.00035794,30]
[423252117,1779997336000,-200.0,0.00035794,30]
[423252118,1779997336000,-168.3888056,0.00035794,30]
[423252115,1779997336000,-174.61919141,0.00035794,30]
[423252124,1779997336000,-500.0,0.00035794,30]
[423252147,1779997337000,-588.16406547,0.00035794,30]
[423252148,1779997337000,-7142.856,0.00035794,30]
[423252153,1779997337000,-251.0,0.00035794,30]
[423252150,1779997337000,-174.61919141,0.00035794,30]
[423252151,1779997337000,-194.72792766,0.00035794,30]
[423252146,1779997337000,-200.0,0.00035794,30]
[423252149,1779997337000,-200.0,0.00035794,30]
[423252144,1779997337000,-151.0,0.00035794,30]
[423252140,1779997337000,-187.78006524,0.00035794,30]
[423252143,1779997337000,-743.50770149,0.00035794,30]
[423252142,1779997337000,-500.0,0.00035794,30]
[423252141,1779997337000,-537.6845,0.00035794,30]
[423252139,1779997337000,-500.0,0.00035794,30]
[423252137,1779997337000,-200.0,0.00035794,30]
[423252138,1779997337000,-151.0,0.00035794,30]
[423252136,1779997337000,-6888.0,0.00035794,30]
[423252152,1779997337000,-771.01748644,0.00035794,30]
[423252145,1779997337000,-187.78006524,0.00035794,30]
[423252154,1779997337000,-200.0,0.00035794,30]
[423252156,1779997337000,-500.0,0.00035794,30]
[423252174,1779997337000,-7681.20591386,0.00035794,30]
[423252155,1779997337000,-500.0,0.00035794,30]
[423252173,1779997337000,-200.0,0.00035794,30]
[423252175,1779997337000,-198.90527719,0.00035794,30]
[423252172,1779997337000,-529.91715375,0.00035794,30]
[423252171,1779997337000,-151.0,0.00035794,30]
[423252169,1779997337000,-6000.0,0.00035794,30]
[423252168,1779997337000,-151.0,0.00035794,30]
[423252167,1779997337000,-520.0,0.00035794,30]
[423252166,1779997337000,-152.0,0.00035794,30]
[423252170,1779997337000,-201.93286098,0.00035794,30]
[423252164,1779997337000,-200.0,0.00035794,30]
[423252165,1779997337000,-201.93286099,0.00035794,30]
[423252158,1779997337000,-151.0,0.00035794,30]
[423252159,1779997337000,-7407.141672,0.00035794,30]
[423252160,1779997337000,-518.5,0.00035794,30]
[423252157,1779997337000,-194.72792766,0.00035794,30]
[423252163,1779997337000,-500.0,0.00035794,30]
[423252161,1779997337000,-156.587,0.00035794,30]
[423252162,1779997337000,-557.5788265,0.00035794,30]
[423252185,1779997338000,-537.6845,0.00035794,30]
[423252194,1779997338000,-217.15233878,0.00035794,30]
[423252192,1779997338000,-151.0,0.00035794,30]
[423252191,1779997338000,-156.587,0.00035794,30]
[423252189,1779997338000,-200.0,0.00035794,30]
[423252190,1779997338000,-539.24,0.00035794,30]
[423252188,1779997338000,-152.0,0.00035794,30]
[423252187,1779997338000,-500.0,0.00035794,30]
[423252186,1779997338000,-578.20924308,0.00035794,30]
[423252193,1779997338000,-6222.0,0.00035794,30]
[423252182,1779997338000,-209.40437684,0.00035794,30]
[423252183,1779997338000,-162.380719,0.00035794,30]
[423252181,1779997338000,-151.0,0.00035794,30]
[423252180,1779997338000,-260.287,0.00035794,30]
[423252179,1779997338000,-200.0,0.00035794,30]
[423252177,1779997338000,-200.0,0.00035794,30]
[423252178,1779997338000,-500.0,0.00035794,30]
[423252176,1779997338000,-500.0,0.00035794,30]
[423252184,1779997338000,-7965.41053267,0.00035794,30]
[423252195,1779997338000,-200.0,0.00035794,30]
[423252215,1779997338000,-280.9500582,0.00035794,30]
[423252198,1779997338000,-500.0,0.00035794,30]
[423252196,1779997338000,-8260.13072238,0.00035794,30]
[423252216,1779997338000,-500.0,0.00035794,30]
[423252214,1779997338000,-200.0,0.00035794,30]
[423252213,1779997338000,-6452.214,0.00035794,30]
[423252210,1779997338000,-559.19188,0.00035794,30]
[423252211,1779997338000,-151.0,0.00035794,30]
[423252212,1779997338000,-200.0,0.00035794,30]
[423252208,1779997338000,-8565.75555911,0.00035794,30]
[423252207,1779997338000,-599.60298507,0.00035794,30]
[423252209,1779997338000,-162.380719,0.00035794,30]
[423252205,1779997338000,-557.5788265,0.00035794,30]
[423252206,1779997338000,-152.0,0.00035794,30]
[423252199,1779997338000,-269.917619,0.00035794,30]
[423252200,1779997338000,-200.0,0.00035794,30]
[423252202,1779997338000,-151.0,0.00035794,30]
[423252197,1779997338000,-500.0,0.00035794,30]
[423252203,1779997338000,-225.18697532,0.00035794,30]
[423252204,1779997338000,-500.0,0.00035794,30]
[423252201,1779997338000,-200.0,0.00035794,30]
[423252237,1779997339000,-151.0,0.00035794,30]
[423252236,1779997339000,-500.0,0.00035794,30]
[423252234,1779997339000,-500.0,0.00035794,30]
[423252233,1779997339000,-200.0,0.00035794,30]
[423252231,1779997339000,-5843.89069393,0.00035794,30]
[423252232,1779997339000,-200.0,0.00035794,30]
[423252230,1779997339000,-151.0,0.00035794,30]
[423252229,1779997339000,-9211.34798987,0.00035794,30]
[423252227,1779997339000,-579.88197956,0.00035794,30]
[423252217,1779997339000,-8882.6885148,0.00035794,30]
[423252224,1779997339000,-578.20924308,0.00035794,30]
[423252225,1779997339000,-500.0,0.00035794,30]
[423252222,1779997339000,-151.0,0.00035794,30]
[423252223,1779997339000,-168.3888056,0.00035794,30]
[423252221,1779997339000,-200.0,0.00035794,30]
[423252220,1779997339000,-216.18411203,0.00035794,30]
[423252219,1779997339000,-500.0,0.00035794,30]
[423252218,1779997339000,-279.9045709,0.00035794,30]
[423252226,1779997339000,-152.0,0.00035794,30]
[423252235,1779997339000,-349.07023516,0.00035794,30]
[423252228,1779997339000,-168.3888056,0.00035794,30]
[423252239,1779997339000,-174.61919141,0.00035794,30]
[423252238,1779997339000,-200.0,0.00035794,30]
[423252256,1779997339000,-152.0,0.00035794,30]
[423252257,1779997339000,-181.08010149,0.00035794,30]
[423252254,1779997339000,-500.0,0.00035794,30]
[423252255,1779997339000,-623.58710447,0.00035794,30]
[423252252,1779997339000,-200.0,0.00035794,30]
[423252253,1779997339000,-181.08010149,0.00035794,30]
[423252251,1779997339000,-151.0,0.00035794,30]
[423252250,1779997339000,-621.78829552,0.00035794,30]
[423252258,1779997339000,-151.0,0.00035794,30]
[423252248,1779997339000,-500.0,0.00035794,30]
[423252247,1779997339000,-200.0,0.00035794,30]
[423252245,1779997339000,-151.0,0.00035794,30]
[423252246,1779997339000,-200.0,0.00035794,30]
[423252244,1779997339000,-152.0,0.00035794,30]
[423252243,1779997339000,-174.61919141,0.00035794,30]
[423252242,1779997339000,-601.3376128,0.00035794,30]
[423252241,1779997339000,-500.0,0.00035794,30]
[423252249,1779997339000,-500.0,0.00035794,30]
[423252240,1779997339000,-599.60298507,0.00035794,30]
[423252269,1779997340000,-152.0,0.00035794,30]
[423252271,1779997340000,-200.0,0.00035794,30]
[423252275,1779997340000,-668.65185756,0.00035794,30]
[423252274,1779997340000,-439.6293395,0.00035794,30]
[423252273,1779997340000,-500.0,0.00035794,30]
[423252270,1779997340000,-187.78006524,0.00035794,30]
[423252272,1779997340000,-200.0,0.00035794,30]
[423252267,1779997340000,-646.65982734,0.00035794,30]
[423252264,1779997340000,-500.0,0.00035794,30]
[423252266,1779997340000,-200.0,0.00035794,30]
[423252265,1779997340000,-187.78006524,0.00035794,30]
[423252262,1779997340000,-644.79446245,0.00035794,30]
[423252263,1779997340000,-151.0,0.00035794,30]
[423252261,1779997340000,-500.0,0.00035794,30]
[423252260,1779997340000,-200.0,0.00035794,30]
[423252259,1779997340000,-500.0,0.00035794,30]
[423252276,1779997340000,-151.0,0.00035794,30]
[423252268,1779997340000,-151.0,0.00035794,30]
[423252278,1779997340000,-194.72792766,0.00035794,30]
[423252284,1779997340000,-500.0,0.00035794,30]
[423252277,1779997340000,-500.0,0.00035794,30]
[423252298,1779997340000,-152.0,0.00035794,30]
[423252297,1779997340000,-151.0,0.00035794,30]
[423252296,1779997340000,-151.0,0.00035794,30]
[423252293,1779997340000,-201.93286099,0.00035794,30]
[423252295,1779997340000,-719.04747942,0.00035794,30]
[423252279,1779997340000,-200.0,0.00035794,30]
[423252292,1779997340000,-695.39793187,0.00035794,30]
[423252289,1779997340000,-269.4846249,0.00035794,30]
[423252291,1779997340000,-152.0,0.00035794,30]
[423252294,1779997340000,-500.0,0.00035794,30]
[423252288,1779997340000,-151.0,0.00035794,30]
[423252287,1779997340000,-693.39197629,0.00035794,30]
[423252285,1779997340000,-180.86370417,0.00035794,30]
[423252286,1779997340000,-284.49311848,0.00035794,30]
[423252283,1779997340000,-194.72792766,0.00035794,30]
[423252281,1779997340000,-151.0,0.00035794,30]
[423252280,1779997340000,-670.58624095,0.00035794,30]
[423252282,1779997340000,-152.0,0.00035794,30]
[423252290,1779997340000,-151.0,0.00035794,30]
[423252305,1779997341000,-500.0,0.00035794,30]
[423252303,1779997341000,-151.0,0.00035794,30]
[423252304,1779997341000,-152.0,0.00035794,30]
[423252299,1779997341000,-721.12765535,0.00035794,30]